fUSD/lending_fUSD_20240203
["ID","MTS","AMOUNT","RATE_DAILY","PERIOD"]
[313242207,1707004237027,-237.42659612,0.00022989,2]
[313242208,1707004237036,-237.42659612,0.00022989,2]
[313242209,1707004237045,-237.42659612,0.00022989,2]
[313242210,1707004237054,-237.42659612,0.00022989,2]
[313242211,1707004237063,-237.42659612,0.00022989,2]
[313242212,1707004237072,-237.42659612,0.00022989,2]
[313242213,1707004237081,-237.42659612,0.00022989,2]
[313242214,1707004237090,-237.42659612,0.00022989,2]
[313242215,1707004237099,-529.55966464,0.0002299,2]
[313242216,1707004237108,-529.55966464,0.0002299,2]
[313242217,1707004237117,-150.0,0.00022995,2]
[313242218,1707004237126,-155.0,0.00022996,2]
[313242219,1707004237137,-161.77804448,0.00022997,2]
[313242220,1707004237146,-6464.9154985,0.00022997,2]
[313242221,1707004237155,-155.0,0.00022998,2]
[313242222,1707004237165,-268.63495185,0.00022998,2]
[313242223,1707004237174,-458.32811282,0.00022998,2]
[313242224,1707004237183,-1060.55480173,0.00022998,2]
[313242225,1707004237193,-316.90563559,0.00022998,2]
[313242226,1707004237202,-165.14434528,0.00022998,2]
[313242227,1707004237213,-2494.0097813,0.00022998,2]
[313242228,1707004237222,-226.7854197,0.00022998,2]
[313242229,1707004237231,-341.83071978,0.00022998,2]
[313242230,1707004237240,-19286.39903277,0.00022998,2]
[313242231,1707004237250,-155.0,0.00022998,2]
[313242232,1707004237260,-265.4584336,0.00022998,2]
[313242233,1707004237270,-2323.45228506,0.00022998,2]
[313242234,1707004237280,-338.46264997,0.00022998,2]
[313242235,1707004237289,-4119.26963342,0.00022998,2]
[313242236,1707004237299,-1813.68084069,0.00022998,2]
[313242237,1707004237308,-838.53372,0.00022998,2]
[313242238,1707004237318,-625.89989292,0.00022998,2]
[313242239,1707004237328,-69076.19080158,0.00022998,2]
[313242240,1707004237337,-150.0,0.00022998,2]
[313242241,1707004237346,-176.8314158,0.00022998,2]
[313242242,1707004237356,-3867.6336098,0.00022998,2]
[313242243,1707004237365,-6707.0925889,0.00022998,2]
[313242244,1707004237375,-28277.4161088,0.00022998,2]
[313242245,1707004237384,-4684.5890655,0.00022998,2]
[313242246,1707004237394,-41459.50778193,0.00022999,2]
[313242247,1707004237403,-1049.62997136,0.00022999,2]
[313242248,1707004237412,-188.46860847,0.00022999,2]
[313242249,1707004237422,-3307.99676522,0.00022999,2]
[313242250,1707004237431,-150.0,0.00022999,2]
[313242251,1707004237440,-1500.0,0.00022999,2]
[313242252,1707004237449,-150.0,0.00022999,2]
[313242253,1707004237459,-150.0,0.00022999,2]
[313242254,1707004237468,-19899.72130727,0.00023,3]
[313242255,1707004237487,-237.42659612,0.00022989,2]
[313242256,1707004237496,-3304.51694826,0.00023,3]
[313242257,1707004237508,-516.09812629,0.00023,3]
[313242258,1707004237545,-1044.20921404,0.00023,3]
[313242259,1707004237559,-70142.15849716,0.00023,3]
[313242266,1707004238021,-237.42659612,0.00022989,2]
[313242267,1707004238030,-237.42659612,0.00022989,2]
[313242268,1707004238040,-237.42659612,0.00022989,2]
[313242269,1707004238049,-237.42659612,0.00022989,2]
[313242270,1707004238058,-237.42659612,0.00022989,2]
[313242271,1707004238067,-237.42659612,0.00022989,2]
[313242272,1707004238076,-237.42659612,0.00022989,2]
[313242273,1707004238085,-237.42659612,0.00022989,2]
[313242274,1707004238094,-237.42659612,0.00022989,2]
[313242275,1707004238104,-237.42659612,0.00022989,2]
[313242276,1707004238114,-2451.37381804,0.00023,3]
[313242277,1707004238125,-840.12646889,0.00023,3]
[313242278,1707004238141,-2448.97906135,0.00023,3]
[313242279,1707004238165,-2112.3169549,0.00023,3]
[313242280,1707004238176,-6170.57082958,0.00023,3]
[313242281,1707004238187,-639.0403552,0.00023,3]
[313242282,1707004238199,-3362.12,0.00023,3]
[313242283,1707004238220,-639.79636647,0.00023,3]
[313242284,1707004238231,-1061.1227723,0.00023,3]
[313242285,1707004238247,-2403.0939845,0.00023,3]
[313242286,1707004238259,-2645.06792185,0.00023,3]
[313242287,1707004238270,-3170.93065347,0.00023,3]
[313242288,1707004238294,-46063.33157608,0.00023,3]
[313242290,1707004238304,-21328.27808566,0.00023,2]
[313242292,1707004238315,-11075.27955681,0.00023,2]
[313242294,1707004238326,-22221.72760387,0.00023,2]
[313242296,1707004238338,-62630.66680341,0.00023,2]
[313242298,1707004238348,-54025.7332903,0.00023,2]
[313242300,1707004238359,-786.5464571,0.00023,2]
[313242301,1707004238370,-349.19474161,0.00023,2]
[313242302,1707004238389,-12550.00132184,0.00023,2]
[313242305,1707004241099,-3307.99676522,0.00022999,2]
[313242306,1707004241109,-1383038.70283826,0.00023,2]
[313242307,1707004241118,-945.74,0.00023,2]
[313242308,1707004241127,-403.63,0.00023,2]
[313242309,1707004241136,-945.74,0.00023,2]
[313242310,1707004241145,-403.63,0.00023,2]
[313242311,1707004241154,-403.63,0.00023,2]
[313242312,1707004241163,-945.74,0.00023,2]
[313242313,1707004241172,-403.63,0.00023,2]
[313242314,1707004241182,-945.74,0.00023,2]
[313242315,1707004241192,-935.35,0.00023,2]
[313242316,1707004241201,-403.63,0.00023,2]
[313242317,1707004241210,-403.63,0.00023,2]
[313242318,1707004241219,-326.69,0.00023,2]
[313242319,1707004241228,-557.61751067,0.00023,2]
[313242320,1707004241237,-403.63,0.00023,2]
[313242321,1707004241246,-403.63,0.00023,2]
[313242322,1707004241255,-398.59,0.00023,2]
[313242323,1707004241264,-37461.1010315,0.00023007,2]
[313242324,1707004241273,-3399.3759709,0.00023007,2]
[313242325,1707004241283,-6824.5637434,0.00023007,2]
[313242326,1707004241292,-42367.3629665,0.00023007,2]
[313242327,1707004241301,-1986.0,0.00023014,2]
[313242328,1707004241310,-151.13,0.00023023,2]
[313242330,1707004241319,-703.16,0.00023072,2]
[313242331,1707004241328,-156.31,0.00023072,2]
[313242333,1707004241337,-1000.0,0.00023084,3]
[313242335,1707004241346,-1000.0,0.00023084,3]
[313242336,1707004241355,-1000.0,0.00023084,3]
[313242337,1707004241364,-1000.0,0.00023084,3]
[313242338,1707004241374,-1000.0,0.00023084,3]
[313242339,1707004241383,-1000.0,0.00023093,3]
[313242340,1707004241392,-1000.0,0.00023093,3]
[313242341,1707004241402,-1000.0,0.00023093,3]
[313242342,1707004241411,-703.16,0.00023187,2]
[313242343,1707004241421,-156.31,0.00023187,2]
[313242344,1707004241430,-300.0,0.00023229,2]
[313242345,1707004241439,-151.13,0.00023268,2]
[313242346,1707004241448,-703.16,0.00023302,2]
[313242347,1707004241458,-156.31,0.00023302,2]
[313242348,1707004241467,-230.86,0.00023315,2]
[313242349,1707004241476,-1364.0,0.00023347,2]
[313242350,1707004241484,-1639.236,0.00023347,2]
[313242351,1707004241494,-386.0,0.00023347,2]
[313242352,1707004241502,-950.0,0.00023347,2]
[313242353,1707004241512,-1862.0,0.00023347,2]
[313242354,1707004241521,-199.542,0.00023347,2]
[313242355,1707004241530,-170.701,0.00023347,2]
[313242356,1707004241538,-839.0,0.00023347,2]
[313242357,1707004241547,-528.0,0.00023347,2]
[313242358,1707004241559,-325.828,0.00023347,2]
[313242359,1707004241568,-1245.0,0.00023347,2]
[313242360,1707004241577,-1254.021,0.00023347,2]
[313242361,1707004241587,-705.0,0.00023347,2]
[313242362,1707004241596,-596.0,0.00023347,2]
[313242363,1707004241607,-1001.0,0.00023347,2]
[313242364,1707004241616,-236.0,0.00023347,2]
[313242365,1707004241625,-428.0,0.00023347,2]
[313242366,1707004241730,-1942.0,0.00023347,2]
[313242367,1707004241760,-320.0,0.00023347,2]
[313242368,1707004241769,-859.0,0.00023347,2]
[313242369,1707004241778,-150.0,0.00023347,2]
[313242370,1707004241787,-359.204,0.00023347,2]
[313242371,1707004241796,-7388.0,0.00023347,2]
[313242372,1707004241806,-8135.0,0.00023347,2]
[313242373,1707004241815,-2917.0,0.00023347,2]
[313242374,1707004241824,-5606.0,0.00023347,2]
[313242375,1707004241833,-19783.0,0.00023347,2]
[313242376,1707004241842,-2282.0,0.00023347,2]
[313242377,1707004241851,-4195.0,0.00023347,2]
[313242378,1707004241861,-42406.0,0.00023347,2]
[313242379,1707004241870,-150.0,0.00023347,2]
[313242380,1707004241880,-294.0,0.00023347,2]
[313242381,1707004241889,-150.554,0.00023347,2]
[313242382,1707004241897,-203.847,0.00023347,2]
[313242383,1707004241907,-1034.0,0.00023347,2]
[313242384,1707004241916,-1000.0,0.000234,2]
[313242385,1707004241925,-703.16,0.00023418,2]
[313242386,1707004241934,-156.31,0.00023418,2]
[313242387,1707004241944,-217.46,0.00023496,2]
[313242388,1707004241953,-167.0,0.00023505,2]
[313242389,1707004241962,-151.13,0.00023513,2]
[313242390,1707004241971,-703.16,0.00023533,2]
[313242391,1707004241980,-156.31,0.00023533,2]
[313242392,1707004241989,-703.16,0.00023648,2]
[313242393,1707004241998,-156.31,0.00023648,2]
[313242394,1707004242006,-151.13,0.00023758,2]
[313242395,1707004242015,-703.16,0.00023764,2]
[313242396,1707004242025,-156.31,0.00023764,2]
[313242397,1707004242034,-1000.0,0.00023825,3]
[313242398,1707004242043,-1000.0,0.00023825,3]
[313242399,1707004242052,-1000.0,0.00023825,3]
[313242400,1707004242061,-1000.0,0.00023825,3]
[313242401,1707004242070,-1000.0,0.00023825,3]
[313242402,1707004242079,-1000.0,0.00023825,3]
[313242403,1707004242088,-1000.0,0.00023825,3]
[313242404,1707004242097,-1000.0,0.00023825,3]
[313242405,1707004242105,-1000.0,0.00023825,3]
[313242406,1707004242115,-1000.0,0.00023825,3]
[313242407,1707004242124,-1000.0,0.00023825,3]
[313242408,1707004242133,-1000.0,0.00023825,3]
[313242409,1707004242143,-1000.0,0.00023825,3]
[313242410,1707004242152,-960.73686296,0.00023825,3]
[313242411,1707004242161,-1000.0,0.00023825,3]
[313242412,1707004242171,-1000.0,0.00023825,3]
[313242413,1707004242179,-750.10046739,0.00023825,3]
[313242414,1707004242189,-1837.18886286,0.00023825,3]
[313242415,1707004242198,-1000.0,0.00023825,3]
[313242416,1707004242207,-794.32536475,0.00023825,3]
[313242417,1707004242217,-1319.19790042,0.00023825,3]
[313242418,1707004242226,-1000.0,0.00023825,3]
[313242419,1707004242236,-1000.0,0.00023825,3]
[313242420,1707004242245,-1000.0,0.00023825,3]
[313242421,1707004242254,-1173.36109619,0.00023825,3]
[313242422,1707004242264,-1087.92403045,0.00023825,3]
[313242423,1707004242273,-703.16,0.00023879,2]
[313242424,1707004242282,-156.31,0.00023879,2]
[313242425,1707004242291,-703.16,0.00023994,2]
[313242426,1707004242301,-156.31,0.00023994,2]
[313242427,1707004242310,-387.35895658,0.00024,2]
[313242428,1707004242319,-600.0,0.00024,3]
[313242429,1707004242329,-151.13,0.00024003,2]
[313242430,1707004242338,-1170.39,0.00024013,2]
[313242431,1707004242347,-703.16,0.0002411,2]
[313242432,1707004242357,-156.31,0.0002411,2]
[313242433,1707004242366,-11021.63,0.00024174,2]
[313242434,1707004242375,-151.13,0.00024248,2]
[313242435,1707004242384,-167.0,0.00024256,2]
[313242436,1707004242393,-1000.0,0.000243,2]
[313242437,1707004242403,-24054.0282966,0.00024344,2]
[313242438,1707004242413,-21488.45,0.00024384,2]
[313242439,1707004242422,-3127.14,0.00024384,2]
[313242440,1707004242432,-187.06,0.00024462,2]
[313242441,1707004242441,-75000.0,0.00024493,15]
[313242442,1707004242450,-737.6,0.00024589,2]
[313242443,1707004242458,-500.0,0.00024596,2]
[313242444,1707004242468,-200.0,0.00024596,2]
[313242445,1707004242477,-300.0,0.00024599,2]
[313242446,1707004242486,-328.0,0.00024603,2]
[313242447,1707004242495,-405.24244888,0.00024614,2]
[313242448,1707004242505,-2602.60078181,0.00024614,2]
[313242449,1707004242514,-250.0,0.00024658,2]
[313242450,1707004242523,-2500.0,0.00024658,3]
[313242451,1707004242532,-180.0,0.00024728,2]
[313242452,1707004242541,-1170.39,0.00024863,2]
[313242453,1707004242550,-179.56667641,0.00024891,2]
[313242454,1707004242563,-500.0,0.00024903,2]
[313242455,1707004242572,-153.04633665,0.00024983,2]
[313242456,1707004242581,-510.9613416,0.00025,2]
[313242457,1707004242590,-584.55688261,0.00025,2]
[313242458,1707004242600,-1798.02731092,0.00025,2]
[313242459,1707004242609,-1906.13148875,0.00025,2]
[313242460,1707004242618,-159.2692348,0.00025,2]
[313242461,1707004242628,-323.9802365,0.00025,2]
[313242462,1707004242637,-202.73608472,0.00025,2]
[313242463,1707004242646,-3050.34368042,0.00025,2]
[313242464,1707004242656,-1253.60774218,0.00025,2]
[313242465,1707004242665,-167.96342031,0.00025,2]
[313242466,1707004242675,-12900.14176762,0.00025,2]
[313242467,1707004242684,-2815.16233286,0.00025,2]
[313242468,1707004242693,-290.9606463,0.00025,2]
[313242471,1707004242702,-268.0,0.00025,13]
[313242473,1707004242711,-167.0,0.00025007,2]
[313242474,1707004242721,-1000.0,0.00025016,3]
[313242475,1707004242730,-1802.36718612,0.000251,2]
[313242476,1707004242739,-1057.14,0.000251,7]
[313242477,1707004242748,-217.46,0.00025139,2]
[313242478,1707004242757,-151.05851724,0.0002535,2]
[313242479,1707004242766,-152.32680565,0.0002535,2]
[313242480,1707004242775,-1000.0,0.000255,2]
[313242481,1707004242785,-268.0,0.000255,13]
[313242482,1707004242794,-1170.39,0.00025712,2]
[313242483,1707004242803,-500.0,0.00025718,2]
[313242484,1707004242812,-500.0,0.00025727,2]
[313242485,1707004242821,-500.0,0.00025736,2]
[313242486,1707004242831,-500.0,0.00025745,2]
[313242487,1707004242840,-500.0,0.00025753,2]
[313242489,1707004242849,-167.0,0.00025758,2]
[313242491,1707004242859,-500.0,0.00025762,2]
[313242493,1707004242869,-150.0,0.00025786,2]
[313242495,1707004242878,-150.0,0.00025786,2]
[313242496,1707004242888,-24054.0282966,0.00025787,2]
[313242497,1707004242899,-253.90357329,0.00025999,2]
[313242498,1707004242910,-153.58945095,0.00025999,2]
[313242499,1707004242921,-4186.50456869,0.00026,2]
[313242500,1707004242930,-650.0,0.00026,3]
[313242501,1707004242938,-268.0,0.00026,14]
[313242502,1707004242948,-150.0,0.00026079,2]
[313242503,1707004242958,-193.71043996,0.00026194,2]
[313242504,1707004242969,-1000.0,0.00026208,3]
[313242505,1707004242978,-1000.0,0.00026208,3]
[313242506,1707004242988,-1000.0,0.00026208,3]
[313242507,1707004242999,-1000.0,0.00026208,3]
[313242508,1707004243008,-1000.0,0.00026208,3]
[313242509,1707004243017,-1000.0,0.00026208,3]
[313242510,1707004243026,-1000.0,0.00026208,3]
[313242511,1707004243035,-1000.0,0.00026208,3]
[313242512,1707004243044,-1000.0,0.00026208,3]
[313242513,1707004243053,-1000.0,0.00026208,3]
[313242514,1707004243061,-1000.0,0.00026208,3]
[313242515,1707004243070,-1000.0,0.00026208,3]
[313242516,1707004243079,-1000.0,0.00026247,2]
[313242517,1707004243088,-1364.0,0.00026347,2]
[313242518,1707004243097,-950.0,0.00026347,2]
[313242519,1707004243106,-1862.0,0.00026347,2]
[313242520,1707004243115,-839.0,0.00026347,2]
[313242522,1707004243124,-215.0,0.00026347,2]
[313242523,1707004243133,-1232.0,0.00026347,2]
[313242525,1707004243143,-1250.0,0.00026347,2]
[313242527,1707004243152,-705.0,0.00026347,2]
[313242529,1707004243162,-312.184,0.00026347,2]
[313242532,1707004243171,-236.0,0.00026347,2]
[313242533,1707004243180,-428.0,0.00026347,2]
[313242535,1707004243190,-1936.0,0.00026347,2]
[313242537,1707004243199,-320.0,0.00026347,2]
[313242539,1707004243208,-150.0,0.00026347,2]
[313242541,1707004243217,-342.0,0.00026347,2]
[313242543,1707004243226,-7388.0,0.00026347,2]
[313242545,1707004243235,-8123.0,0.00026347,2]
[313242548,1707004243244,-2917.0,0.00026347,2]
[313242551,1707004243253,-5606.0,0.00026347,2]
[313242554,1707004243262,-19783.0,0.00026347,2]
[313242557,1707004243271,-2282.0,0.00026347,2]
[313242559,1707004243280,-3332.261,0.00026347,2]
[313242561,1707004243290,-42406.0,0.00026347,2]
[313242563,1707004243299,-150.0,0.00026347,2]
[313242565,1707004243308,-150.0,0.00026347,2]
[313242567,1707004243317,-1034.0,0.00026347,2]
[313242569,1707004243327,-500.0,0.00026374,2]
[313242571,1707004243337,-153.58945095,0.00026399,2]
[313242573,1707004243346,-150.0,0.000265,2]
[313242575,1707004243356,-268.0,0.000265,14]
[313242577,1707004243365,-1962.663427,0.000265,2]
[313242579,1707004243374,-200.0,0.000265,2]
[313242581,1707004243383,-167.0,0.00026509,2]
[313242583,1707004243393,-41578.8323361,0.00026533,2]
[313242585,1707004243402,-192.2740034,0.00026533,2]
[313242587,1707004243411,-4205.3918666,0.00026533,2]
[313242589,1707004243421,-3332.1639745,0.00026546,2]
[313242591,1707004243430,-6689.6294032,0.00026546,2]
[313242593,1707004243440,-36766.6095151,0.00026551,2]
[313242595,1707004243449,-1170.39,0.00026561,2]
[313242596,1707004243458,-7308.0218147,0.00026566,2]
[313242598,1707004243467,-30855.1609172,0.00026566,2]
[313242600,1707004243476,-5111.6321551,0.00026566,2]
[313242602,1707004243485,-202.09649818,0.00026584,2]
[313242604,1707004243495,-258.47501316,0.00026586,2]
[313242606,1707004243504,-6459.36522,0.00026587,2]
[313242608,1707004243513,-3915.0,0.000266,2]
[313242610,1707004243523,-26880.0,0.000266,2]
[313242612,1707004243532,-1047.0,0.000266,2]
[313242613,1707004243541,-187.06,0.00026726,2]
[313242615,1707004243551,-217.46,0.00026783,2]
[313242617,1707004243564,-453.07764906,0.0002685,30]
[313242619,1707004243573,-150.0,0.00026999,2]
[313242621,1707004243583,-286.63119785,0.00027,2]
[313242622,1707004243592,-155.12358771,0.00027,2]
[313242623,1707004243602,-268.0,0.00027,15]
[313242624,1707004243612,-500.0,0.00027,7]
[313242625,1707004243623,-500.0,0.00027,7]
[313242626,1707004243632,-500.0,0.00027,7]
[313242627,1707004243642,-500.0,0.00027,7]
[313242628,1707004243651,-500.0,0.00027,7]
[313242629,1707004243660,-500.0,0.00027,7]
[313242630,1707004243669,-500.0,0.00027,7]
[313242631,1707004243678,-500.0,0.00027,7]
[313242632,1707004243687,-500.0,0.00027,7]
[313242633,1707004243696,-200.0,0.00027,2]
[313242634,1707004243705,-4000.0,0.00027,2]
[313242635,1707004243714,-153.04633665,0.00027067,2]
[313242636,1707004243723,-153.58945095,0.00027096,2]
[313242637,1707004243732,-199.0,0.000271,5]
[313242638,1707004243741,-24054.0282966,0.00027231,2]
[313242639,1707004243751,-152.0,0.00027276,2]
[313242640,1707004243760,-151.05851724,0.00027296,2]
[313242641,1707004243769,-737.6,0.00027321,2]
[313242642,1707004243778,-328.0,0.00027337,2]
[313242643,1707004243787,-300.0,0.00027397,5]
[313242644,1707004243796,-155.0,0.00027397,2]
[313242645,1707004243805,-150.0,0.00027397,2]
[313242646,1707004243814,-3000.0,0.00027397,2]
[313242647,1707004243823,-3000.0,0.00027397,2]
[313242648,1707004243832,-3000.0,0.00027397,2]
[313242649,1707004243841,-3000.0,0.00027397,2]
[313242650,1707004243851,-3000.0,0.00027397,2]
[313242651,1707004243860,-3000.0,0.00027397,2]
[313242652,1707004243871,-3000.0,0.00027397,2]
[313242653,1707004243881,-3000.0,0.00027397,2]
[313242654,1707004243891,-3000.0,0.00027397,2]
[313242655,1707004243901,-3000.0,0.00027397,2]
[313242656,1707004243913,-3000.0,0.00027397,2]
[313242657,1707004243924,-3000.0,0.00027397,2]
[313242658,1707004243933,-3000.0,0.00027397,2]
[313242659,1707004243943,-3000.0,0.00027397,2]
[313242660,1707004243952,-5604.56848356,0.00027397,2]
[313242661,1707004243962,-200.0,0.00027397,2]
[313242662,1707004243970,-60800.79,0.00027397,2]
[313242663,1707004243979,-19349.41,0.00027397,2]
[313242664,1707004243988,-530.0,0.00027397,2]
[313242665,1707004243997,-189.92726649,0.00027399,7]
[313242666,1707004244006,-235.44123822,0.00027399,7]
[313242667,1707004244015,-1000.0,0.00027399,7]
[313242668,1707004244024,-669.10594217,0.00027399,7]
[313242669,1707004244033,-1000.0,0.00027399,7]
[313242670,1707004244071,-1000.0,0.00027399,7]
[313242671,1707004244080,-1083.91209456,0.00027399,7]
[313242672,1707004244089,-438.90181339,0.00027399,7]
[313242673,1707004244098,-941.5510283,0.00027399,7]
[313242674,1707004244106,-450.0,0.00027399,7]
[313242675,1707004244115,-828.18563049,0.00027399,7]
[313242676,1707004244124,-1036.91680363,0.00027399,7]
[313242677,1707004244133,-364.64759982,0.00027399,7]
[313242678,1707004244142,-1000.0,0.00027399,7]
[313242679,1707004244151,-500.20093477,0.00027399,7]
[313242680,1707004244161,-183.71888629,0.00027399,7]
[313242681,1707004244170,-1548.14128664,0.00027399,7]
[313242682,1707004244179,-157.97620943,0.00027399,7]
[313242683,1707004244188,-1000.0,0.00027399,7]
[313242684,1707004244197,-1000.0,0.00027399,7]
[313242685,1707004244206,-432.05290799,0.00027399,7]
[313242686,1707004244215,-438.90181339,0.00027399,7]
[313242687,1707004244224,-1291.32285598,0.00027399,7]
[313242688,1707004244233,-261.09081395,0.00027399,7]
[313242689,1707004244242,-290.30398801,0.00027399,7]
[313242690,1707004244251,-1623.8781285,0.00027399,7]
[313242691,1707004244260,-1000.0,0.00027399,7]
[313242692,1707004244269,-1012.88,0.000274,2]
[313242693,1707004244278,-1012.88,0.000274,2]
[313242694,1707004244287,-1012.88,0.000274,2]
[313242695,1707004244296,-1012.88,0.000274,2]
[313242696,1707004244306,-1012.88,0.000274,2]
[313242697,1707004244315,-1012.88,0.000274,2]
[313242698,1707004244324,-1012.88,0.000274,2]
[313242699,1707004244333,-1012.88,0.000274,2]
[313242700,1707004244342,-1012.88,0.000274,2]
[313242701,1707004244352,-1012.88,0.000274,2]
[313242702,1707004244361,-1170.39,0.0002741,2]
[313242703,1707004244370,-6868.85131928,0.00027437,2]
[313242704,1707004244379,-155.0,0.000275,2]
[313242705,1707004244388,-268.0,0.000275,16]
[313242706,1707004244397,-200.0,0.000275,2]
[313242707,1707004244406,-19349.41,0.00027556,2]
[313242708,1707004244415,-529.55966464,0.00027589,2]
[313242709,1707004244425,-437.34311867,0.00027599,2]
[313242710,1707004244434,-58000.0,0.00027599,2]
[313242711,1707004244443,-58000.0,0.00027599,2]
[313242712,1707004244451,-58000.0,0.00027599,2]
[313242713,1707004244461,-30036.97970977,0.00027599,2]
[313242714,1707004244470,-19349.41,0.00027714,2]
[313242715,1707004244478,-19349.41,0.00027872,2]
[313242716,1707004244487,-206.0,0.00027886,10]
[313242717,1707004244496,-207.716591,0.00027924,2]
[313242718,1707004244506,-4543.1501234,0.00027924,2]
[313242719,1707004244515,-3264.9519781,0.00027943,2]
[313242720,1707004244524,-6554.695063,0.00027943,2]
[313242721,1707004244533,-40790.3017058,0.00027943,2]
[313242722,1707004244544,-300.0,0.00027945,5]
[313242723,1707004244556,-150.0,0.00027945,2]
[313242724,1707004244570,-36072.1179988,0.00027962,2]
[313242725,1707004244580,-7908.9510405,0.00027981,2]
[313242726,1707004244589,-33432.9057255,0.00027981,2]
[313242727,1707004244600,-5538.6752448,0.00027981,2]
[313242728,1707004244608,-150.0,0.00027999,2]
[313242729,1707004244618,-150.0,0.00027999,2]
[313242730,1707004244627,-150.0,0.00027999,2]
[313242731,1707004244637,-691.4404306,0.00028,2]
[313242732,1707004244647,-171.68916912,0.00028,2]
[313242733,1707004244660,-154721.29904215,0.00028,2]
[313242734,1707004244670,-700.0,0.00028,3]
[313242735,1707004244678,-268.0,0.00028,16]
[313242736,1707004244687,-200.0,0.00028,2]
[313242737,1707004244698,-200.0,0.00028,2]
[313242738,1707004244708,-19349.41,0.0002803,2]
[313242739,1707004244717,-19349.41,0.00028189,2]
[313242740,1707004244727,-1000.0,0.000282,2]
[313242741,1707004244738,-417.21,0.00028219,2]
[313242742,1707004244747,-417.21,0.00028219,2]
[313242743,1707004244757,-206.46,0.00028219,2]
[313242744,1707004244770,-265.28,0.00028219,2]
[313242745,1707004244779,-300.0,0.00028219,2]
[313242746,1707004244790,-417.21,0.00028219,2]
[313242747,1707004244801,-388.57,0.00028219,2]
[313242748,1707004244810,-150.0,0.00028219,2]
[313242749,1707004244819,-300.0,0.00028219,2]
[313242750,1707004244828,-417.21,0.00028219,2]
[313242751,1707004244837,-150.0,0.00028219,2]
[313242752,1707004244848,-417.21,0.00028219,2]
[313242753,1707004244856,-150.0,0.00028219,2]
[313242754,1707004244866,-150.0,0.00028219,2]
[313242755,1707004244876,-150.0,0.00028219,2]
[313242756,1707004244887,-150.0,0.00028219,2]
[313242757,1707004244897,-150.0,0.00028219,2]
[313242758,1707004244908,-283.38,0.00028219,2]
[313242759,1707004244919,-417.21,0.00028219,2]
[313242760,1707004244930,-417.21,0.00028219,2]
[313242761,1707004244941,-417.21,0.00028219,2]
[313242762,1707004244951,-416.01,0.00028219,2]
[313242763,1707004244960,-1170.39,0.0002826,2]
[313242764,1707004244969,-19349.41,0.00028347,2]
[313242765,1707004244978,-5800.0,0.00028359,2]
[313242766,1707004244988,-5800.0,0.00028367,2]
[313242767,1707004244997,-5800.0,0.00028376,2]
[313242768,1707004245006,-5800.0,0.00028384,2]
[313242769,1707004245016,-5800.0,0.00028393,2]
[313242770,1707004245025,-5800.0,0.00028401,2]
[313242771,1707004245037,-5800.0,0.0002841,2]
[313242772,1707004245048,-5800.0,0.00028418,2]
[313242773,1707004245058,-5800.0,0.00028427,2]
[313242774,1707004245069,-5800.0,0.00028427,2]
[313242775,1707004245079,-217.46,0.00028427,2]
[313242776,1707004245089,-300.0,0.00028493,5]
[313242777,1707004245098,-150.0,0.00028493,2]
[313242778,1707004245108,-268.0,0.000285,17]
[313242779,1707004245119,-200.0,0.000285,2]
[313242780,1707004245128,-19349.41,0.00028505,2]
[313242781,1707004245138,-19349.41,0.00028664,2]